[Event "MČR juniorů a juniorek v rapid šachu 2024"]
[Site "Hotel Fit Fun, Harrachov, Czech Republic"]
[Date "2024.09.21"]
[Round "3.4"]
[White "Markina Sofiia"]
[Black "Vilimek Vit"]
[Result "1-0"]
[TimeControl "20+5"]
[WhiteFideId "23744014"]
[BlackFideId "23718218"]
[WhiteElo "1885"]
[BlackElo "2025"]

1. e4 {[%clk 00:20:08]} {[%emt 00:10:26]} c5 {[%clk 00:20:10]} 2. Nc3 {[%clk
00:20:12]} Nc6 {[%clk 00:20:14]} 3. Bb5 {[%clk 00:20:16]} {[%emt 00:00:02]} e5
{[%clk 00:19:52]} {[%emt 00:00:28]} 4. Nf3 {[%clk 00:20:08]} {[%emt 00:00:13]}
Nf6 {[%clk 00:19:40]} {[%emt 00:00:16]} 5. Bxc6 {[%clk 00:19:37]} {[%emt
00:00:36]} dxc6 {[%clk 00:19:43]} {[%emt 00:00:02]} 6. Nxe5 {[%clk 00:19:33]}
{[%emt 00:00:10]} Nxe4 {[%clk 00:17:52]} {[%emt 00:01:55]} 7. Nxe4 {[%clk
00:18:43]} {[%emt 00:00:55]} Qd4 {[%clk 00:17:40]} {[%emt 00:00:17]} 8. O-O
{[%clk 00:18:32]} {[%emt 00:00:16]} Qxe5 {[%clk 00:17:10]} {[%emt 00:00:35]} 9.
Re1 {[%clk 00:18:35]} {[%emt 00:00:03]} Be6 {[%clk 00:17:03]} {[%emt 00:00:12]}
10. c3 {[%clk 00:17:29]} {[%emt 00:01:10]} O-O-O {[%clk 00:16:45]} {[%emt
00:00:23]} 11. d3 {[%clk 00:16:17]} {[%emt 00:01:17]} Qd5 {[%clk 00:13:53]}
{[%emt 00:02:58]} 12. Qa4 {[%clk 00:15:42]} {[%emt 00:00:40]} a6 {[%clk
00:11:04]} {[%emt 00:02:54]} 13. Bf4 {[%clk 00:15:33]} {[%emt 00:00:14]} Be7
{[%clk 00:06:57]} {[%emt 00:04:11]} 14. Qa5 {[%clk 00:15:04]} {[%emt 00:00:34]}
Rd7 {[%clk 00:06:38]} {[%emt 00:00:24]} 15. c4 {[%clk 00:13:20]} {[%emt
00:01:49]} Qf5 {[%clk 00:06:02]} {[%emt 00:00:41]} 16. Be3 {[%clk 00:13:12]}
{[%emt 00:00:13]} Rxd3 {[%clk 00:03:49]} {[%emt 00:02:19]} 17. Bxc5 {[%clk
00:13:05]} {[%emt 00:00:12]} Bd8 {[%clk 00:02:27]} {[%emt 00:01:26]} 18. Qa4
{[%clk 00:12:31]} {[%emt 00:00:36]} Bc7 {[%clk 00:02:12]} {[%emt 00:00:23]} 19.
Ba7 {[%clk 00:10:16]} {[%emt 00:02:20]} Rhd8 {[%clk 00:01:34]} {[%emt
00:00:44]} 20. Nc5 {[%clk 00:10:08]} {[%emt 00:00:13]} Rd2 {[%clk 00:01:36]}
{[%emt 00:00:03]} 21. Nxa6 {[%clk 00:09:10]} {[%emt 00:01:03]} Qa5 {[%clk
00:00:22]} {[%emt 00:01:19]} 22. Qxa5 {[%clk 00:08:39]} {[%emt 00:00:36]} Bxa5
{[%clk 00:00:25]} {[%emt 00:00:02]} 23. Nc5 {[%clk 00:07:36]} {[%emt 00:01:08]}
Rxb2 {[%clk 00:00:08]} {[%emt 00:00:22]} 24. Reb1 {[%clk 00:06:44]} {[%emt
00:00:56]} Rxb1+ {[%clk 00:00:09]} {[%emt 00:00:04]} 25. Rxb1 {[%clk 00:06:49]}
b6 {[%clk 00:00:12]} {[%emt 00:00:03]} 26. Na4 {[%clk 00:06:09]} {[%emt
00:00:44]} Bxc4 {[%clk 00:00:09]} {[%emt 00:00:08]} 27. Nxb6+ {[%clk 00:05:46]}
{[%emt 00:00:28]} Bxb6 {[%clk 00:00:11]} {[%emt 00:00:03]} 28. Bxb6 {[%clk
00:05:50]} Rd2 {[%clk 00:00:09]} {[%emt 00:00:06]} 29. a4 {[%clk 00:05:53]}
{[%emt 00:00:02]} Ra2 {[%clk 00:00:08]} {[%emt 00:00:06]} 30. a5 {[%clk
00:05:56]} {[%emt 00:00:03]} Bb5 {[%clk 00:00:11]} 31. Rd1 {[%clk 00:05:38]}
{[%emt 00:00:23]} Ba4 {[%clk 00:00:11]} {[%emt 00:00:06]} 32. Rd8+ {[%clk
00:05:24]} {[%emt 00:00:18]} Kb7 {[%clk 00:00:16]} 33. h3 {[%clk 00:05:19]}
{[%emt 00:00:11]} Bb3 {[%clk 00:00:20]} 34. Rd7+ {[%clk 00:05:15]} {[%emt
00:00:09]} Ka6 {[%clk 00:00:25]} 35. Ra7+ {[%clk 00:05:10]} {[%emt 00:00:10]}
Kb5 {[%clk 00:00:29]} {[%emt 00:00:01]} 36. Ra8 {[%clk 00:05:13]} Ra1+ {[%clk
00:00:22]} {[%emt 00:00:12]} 37. Kh2 {[%clk 00:05:17]} Ra2 {[%clk 00:00:24]}
{[%emt 00:00:04]} 38. Kg3 {[%clk 00:04:56]} {[%emt 00:00:26]} Be6 {[%clk
00:00:24]} {[%emt 00:00:04]} 39. Bc7 {[%clk 00:04:31]} {[%emt 00:00:26]} c5
{[%clk 00:00:26]} {[%emt 00:00:08]} 40. Rb8+ {[%clk 00:04:27]} {[%emt
00:00:09]} Kc6 {[%clk 00:00:29]} {[%emt 00:00:02]} 41. Bb6 {[%clk 00:04:24]}
{[%emt 00:00:08]} c4 {[%clk 00:00:33]} 42. Bd4 {[%clk 00:04:16]} {[%emt
00:00:12]} Rxa5 {[%clk 00:00:23]} {[%emt 00:00:15]} 43. Rb6+ {[%clk 00:04:08]}
{[%emt 00:00:13]} Kc7 {[%clk 00:00:18]} {[%emt 00:00:09]} 44. Rb4 {[%clk
00:03:56]} {[%emt 00:00:15]} g6 {[%clk 00:00:19]} {[%emt 00:00:06]} 45. Bb6+
{[%emt 00:00:02]} Kc6 46. Bxa5 {[%clk 00:04:03]} {[%emt 00:00:02]} c3 {[%clk
00:00:26]} {[%emt 00:00:02]} 47. Rb6+ {[%clk 00:03:08]} {[%emt 00:01:00]} Kc5
{[%clk 00:00:28]} {[%emt 00:00:04]} 48. Rxe6 {[%clk 00:03:09]} {[%emt
00:00:04]} 1-0



[ePGN "0.1;DGT LiveChess/2.2.6"]

[Event "MČR juniorů a juniorek v rapid šachu 2024"]
[Site "Hotel Fit Fun, Harrachov, Czech Republic"]
[Date "2024.09.21"]
[Round "3.5"]
[White "Lihotsky Lukas"]
[Black "Hosova Sandra"]
[Result "1/2-1/2"]
[TimeControl "20+5"]
[WhiteFideId "23727004"]
[BlackFideId "397717"]
[WhiteElo "1975"]
[BlackElo "1847"]

1. d4 {[%clk 00:20:08]} {[%emt 00:13:08]} d5 {[%clk 00:20:09]} {[%emt
00:00:01]} 2. c4 {[%clk 00:20:12]} {[%emt 00:00:02]} Nf6 {[%clk 00:20:12]}
{[%emt 00:00:02]} 3. cxd5 {[%clk 00:20:11]} {[%emt 00:00:06]} Nxd5 {[%clk
00:20:14]} {[%emt 00:00:03]} 4. e4 {[%clk 00:20:15]} Nf6 {[%clk 00:20:16]}
{[%emt 00:00:03]} 5. Nc3 {[%clk 00:20:18]} {[%emt 00:00:02]} Bg4 {[%clk
00:19:40]} {[%emt 00:00:42]} 6. f3 {[%clk 00:19:55]} {[%emt 00:00:27]} Bc8
{[%clk 00:19:35]} {[%emt 00:00:11]} 7. Be3 {[%clk 00:19:55]} {[%emt 00:00:05]}
e6 {[%clk 00:19:31]} {[%emt 00:00:09]} 8. Bd3 {[%clk 00:19:14]} {[%emt
00:00:46]} Be7 {[%clk 00:19:07]} {[%emt 00:00:29]} 9. Nge2 {[%clk 00:19:16]}
{[%emt 00:00:02]} Nbd7 {[%clk 00:19:08]} {[%emt 00:00:05]} 10. O-O {[%clk
00:19:07]} {[%emt 00:00:13]} O-O {[%clk 00:18:49]} {[%emt 00:00:25]} 11. e5
{[%clk 00:18:06]} {[%emt 00:01:05]} Nd5 {[%clk 00:18:49]} {[%emt 00:00:05]} 12.
Nxd5 {[%clk 00:18:09]} {[%emt 00:00:02]} exd5 {[%clk 00:18:53]} {[%emt
00:00:01]} 13. Qc2 {[%clk 00:17:52]} {[%emt 00:00:22]} g6 {[%clk 00:17:58]}
{[%emt 00:01:00]} 14. Bh6 {[%clk 00:13:48]} {[%emt 00:04:09]} Re8 {[%clk
00:18:00]} {[%emt 00:00:03]} 15. e6 {[%clk 00:12:10]} {[%emt 00:01:43]} Nf6
{[%clk 00:17:12]} {[%emt 00:00:53]} 16. exf7+ {[%clk 00:11:55]} {[%emt
00:00:21]} Kxf7 {[%clk 00:17:15]} {[%emt 00:00:02]} 17. Nf4 {[%clk 00:11:02]}
{[%emt 00:00:55]} Rg8 {[%clk 00:16:58]} {[%emt 00:00:24]} 18. Bg5 {[%clk
00:10:52]} {[%emt 00:00:16]} c6 {[%clk 00:16:51]} {[%emt 00:00:12]} 19. Rae1
{[%clk 00:10:31]} {[%emt 00:00:26]} Bd7 {[%clk 00:16:24]} {[%emt 00:00:32]} 20.
Re2 {[%clk 00:09:19]} {[%emt 00:01:17]} Qb6 {[%clk 00:15:50]} {[%emt 00:00:39]}
21. Qc3 {[%clk 00:08:48]} {[%emt 00:00:35]} Bb4 {[%clk 00:15:18]} {[%emt
00:00:37]} 22. Qb3 {[%clk 00:07:58]} {[%emt 00:00:55]} Qxd4+ {[%clk 00:15:17]}
{[%emt 00:00:07]} 23. Kh1 {[%clk 00:08:02]} Rae8 {[%clk 00:14:16]} {[%emt
00:01:06]} 24. Rxe8 {[%clk 00:06:55]} {[%emt 00:01:12]} Rxe8 {[%clk 00:14:13]}
{[%emt 00:00:08]} 25. Ne2 {[%clk 00:06:11]} {[%emt 00:00:49]} Qb6 {[%clk
00:13:17]} {[%emt 00:01:02]} 26. Qc2 {[%clk 00:04:22]} {[%emt 00:01:54]} Bd6
{[%clk 00:11:30]} {[%emt 00:01:52]} 27. Nf4 {[%clk 00:03:38]} {[%emt 00:00:48]}
Bxf4 {[%clk 00:11:07]} {[%emt 00:00:29]} 28. Bxf4 {[%clk 00:03:38]} {[%emt
00:00:05]} c5 {[%clk 00:10:53]} {[%emt 00:00:19]} 29. b3 {[%clk 00:03:11]}
{[%emt 00:00:32]} Qb4 {[%clk 00:10:17]} {[%emt 00:00:41]} 30. Bd2 {[%clk
00:02:54]} {[%emt 00:00:22]} Qb6 {[%clk 00:10:19]} {[%emt 00:00:03]} 31. Bc3
{[%clk 00:02:49]} {[%emt 00:00:10]} Qd6 {[%clk 00:10:03]} {[%emt 00:00:21]} 32.
f4 {[%clk 00:01:21]} {[%emt 00:01:33]} b5 {[%clk 00:08:58]} {[%emt 00:01:10]}
33. Be5 {[%clk 00:01:15]} {[%emt 00:00:11]} Qc6 {[%clk 00:08:28]} {[%emt
00:00:34]} 34. Bxf6 {[%clk 00:00:19]} {[%emt 00:01:01]} Kxf6 {[%clk 00:08:25]}
{[%emt 00:00:08]} 35. f5 {[%clk 00:00:17]} {[%emt 00:00:07]} g5 {[%clk
00:08:08]} {[%emt 00:00:23]} 36. Rc1 {[%clk 00:00:15]} {[%emt 00:00:07]} c4
{[%clk 00:07:43]} {[%emt 00:00:30]} 37. Qc3+ {[%clk 00:00:09]} {[%emt
00:00:11]} Re5 {[%clk 00:07:46]} {[%emt 00:00:02]} 38. Bf1 {[%clk 00:00:10]}
{[%emt 00:00:03]} Bxf5 {[%clk 00:07:26]} {[%emt 00:00:26]} 39. Re1 {[%clk
00:00:11]} {[%emt 00:00:03]} Qd6 {[%clk 00:07:21]} {[%emt 00:00:10]} 40. bxc4
{[%clk 00:00:10]} {[%emt 00:00:07]} bxc4 {[%clk 00:07:03]} {[%emt 00:00:22]} 41.
Qd4 {[%clk 00:00:13]} {[%emt 00:00:02]} a6 {[%clk 00:05:42]} {[%emt 00:01:27]}
42. Bxc4 {[%clk 00:00:10]} {[%emt 00:00:07]} Ke6 {[%clk 00:04:50]} {[%emt
00:00:57]} 43. Rxe5+ {[%clk 00:00:11]} {[%emt 00:00:04]} Qxe5 {[%clk 00:04:54]}
{[%emt 00:00:01]} 44. Qxe5+ {[%clk 00:00:11]} {[%emt 00:00:06]} Kxe5 {[%clk
00:04:58]} {[%emt 00:00:01]} 45. Bxa6 {[%clk 00:00:15]} d4 {[%clk 00:04:55]}
{[%emt 00:00:07]} 46. Kg1 {[%clk 00:00:17]} {[%emt 00:00:04]} d3 {[%clk
00:04:50]} {[%emt 00:00:10]} 47. Kf2 {[%clk 00:00:17]} {[%emt 00:00:05]} Kd4
{[%clk 00:04:45]} {[%emt 00:00:10]} 48. a4 {[%clk 00:00:13]} {[%emt 00:00:09]}
Kc3 {[%clk 00:04:37]} {[%emt 00:00:13]} 49. a5 {[%clk 00:00:12]} {[%emt
00:00:06]} d2 {[%clk 00:03:56]} {[%emt 00:00:46]} 50. Be2 {[%clk 00:00:16]}
{[%emt 00:00:01]} Bd3 {[%clk 00:03:48]} {[%emt 00:00:13]} 51. Bg4 {[%clk
00:00:12]} {[%emt 00:00:09]} Kb4 {[%clk 00:03:46]} {[%emt 00:00:08]} 52. Ke3
{[%clk 00:00:11]} {[%emt 00:00:05]} Kc3 {[%clk 00:03:45]} {[%emt 00:00:05]} 53.
g3 {[%clk 00:00:08]} {[%emt 00:00:09]} Kc2 {[%clk 00:03:24]} {[%emt 00:00:26]}
54. h4 {[%clk 00:00:11]} {[%emt 00:00:01]} gxh4 {[%clk 00:03:12]} {[%emt
00:00:18]} 55. gxh4 {[%clk 00:00:15]} {[%emt 00:00:01]} Ba6 {[%clk 00:02:52]}
{[%emt 00:00:24]} 56. Kf4 {[%clk 00:00:16]} {[%emt 00:00:04]} d1=Q {[%emt
00:01:48]} 1/2-1/2



[ePGN "0.1;DGT LiveChess/2.2.6"]

[Event "MČR juniorů a juniorek v rapid šachu 2024"]
[Site "Hotel Fit Fun, Harrachov, Czech Republic"]
[Date "2024.09.21"]
[Round "3.6"]
[White "Mrazek Adam"]
[Black "Rousek Jan"]
[Result "1/2-1/2"]
[TimeControl "20+5"]
[WhiteFideId "23725010"]
[BlackFideId "386669"]
[WhiteElo "1830"]
[BlackElo "1958"]

1. c4 {[%clk 00:20:07]} {[%emt 00:00:02]} e5 {[%clk 00:20:06]} {[%emt
00:00:03]} 2. g3 {[%clk 00:20:10]} {[%emt 00:00:04]} Nf6 {[%clk 00:20:04]}
{[%emt 00:00:06]} 3. Bg2 {[%clk 00:20:11]} {[%emt 00:00:05]} d5 {[%clk
00:20:04]} {[%emt 00:00:04]} 4. cxd5 {[%clk 00:20:14]} {[%emt 00:00:03]} Nxd5
{[%clk 00:20:06]} {[%emt 00:00:02]} 5. Nc3 {[%clk 00:20:14]} {[%emt 00:00:05]}
Nb6 {[%clk 00:20:07]} {[%emt 00:00:05]} 6. Nf3 {[%clk 00:20:06]} {[%emt
00:00:13]} Nc6 {[%clk 00:20:09]} {[%emt 00:00:02]} 7. O-O {[%clk 00:20:08]}
{[%emt 00:00:04]} Be7 {[%clk 00:20:11]} {[%emt 00:00:03]} 8. d3 {[%clk
00:20:02]} {[%emt 00:00:11]} O-O {[%clk 00:20:07]} {[%emt 00:00:08]} 9. Be3
{[%clk 00:20:05]} {[%emt 00:00:03]} Be6 {[%clk 00:19:56]} {[%emt 00:00:15]} 10.
Rc1 {[%clk 00:20:01]} {[%emt 00:00:10]} f5 {[%clk 00:19:32]} {[%emt 00:00:29]}
11. Na4 {[%clk 00:14:50]} {[%emt 00:05:17]} Nxa4 {[%clk 00:13:36]} {[%emt
00:06:01]} 12. Qxa4 {[%clk 00:14:53]} {[%emt 00:00:02]} Bf6 {[%clk 00:13:37]}
{[%emt 00:00:03]} 13. b4 {[%clk 00:11:36]} {[%emt 00:03:23]} Bd5 {[%clk
00:10:51]} {[%emt 00:02:51]} 14. b5 {[%clk 00:08:44]} {[%emt 00:02:57]} Nd4
{[%clk 00:10:45]} {[%emt 00:00:10]} 15. Nxd4 {[%clk 00:08:07]} {[%emt
00:00:43]} exd4 {[%clk 00:08:16]} {[%emt 00:02:34]} 16. Bf4 {[%clk 00:05:34]}
{[%emt 00:02:38]} Bxg2 {[%clk 00:08:12]} {[%emt 00:00:08]} 17. Kxg2 {[%clk
00:05:38]} {[%emt 00:00:02]} Qd5+ {[%clk 00:08:15]} 18. Kg1 {[%clk 00:05:36]}
{[%emt 00:00:07]} Be5 {[%clk 00:08:19]} {[%emt 00:00:02]} 19. Qc4 {[%clk
00:04:14]} {[%emt 00:01:27]} Qxc4 {[%clk 00:07:13]} {[%emt 00:01:11]} 20. Rxc4
{[%clk 00:04:18]} Bxf4 {[%clk 00:07:15]} {[%emt 00:00:03]} 21. gxf4 {[%clk
00:04:22]} {[%emt 00:00:02]} Rfe8 {[%clk 00:06:49]} {[%emt 00:00:30]} 22. Re1
{[%clk 00:04:24]} {[%emt 00:00:04]} a6 {[%clk 00:05:04]} {[%emt 00:01:50]} 23.
a4 {[%clk 00:00:59]} {[%emt 00:03:30]} axb5 {[%clk 00:04:57]} {[%emt 00:00:12]}
24. axb5 {[%clk 00:01:04]} Ra5 {[%clk 00:04:29]} {[%emt 00:00:32]} 25. Rb4
{[%clk 00:00:17]} {[%emt 00:00:53]} Kf7 {[%clk 00:02:03]} {[%emt 00:02:30]} 26.
Kf1 {[%clk 00:00:21]} {[%emt 00:00:01]} Rd8 {[%clk 00:01:35]} {[%emt 00:00:33]}
27. Rc1 {[%clk 00:00:13]} {[%emt 00:00:13]} Rd7 {[%clk 00:01:40]} 28. Kg2
{[%clk 00:00:09]} {[%emt 00:00:09]} Ke6 {[%clk 00:01:25]} {[%emt 00:00:20]} 29.
Kf3 {[%clk 00:00:13]} g6 {[%clk 00:01:19]} {[%emt 00:00:11]} 30. Rcc4 {[%clk
00:00:12]} {[%emt 00:00:07]} b6 {[%clk 00:00:54]} {[%emt 00:00:30]} 31. h4
{[%clk 00:00:12]} {[%emt 00:00:05]} Kf6 {[%clk 00:00:42]} {[%emt 00:00:17]} 32.
Rc6+ {[%clk 00:00:12]} {[%emt 00:00:05]} Ke7 {[%clk 00:00:36]} {[%emt
00:00:10]} 33. Rcc4 {[%clk 00:00:10]} {[%emt 00:00:08]} Ke6 {[%clk 00:00:40]}
34. Rc6+ {[%clk 00:00:14]} Ke7 {[%clk 00:00:43]} {[%emt 00:00:02]} 35. h5
{[%clk 00:00:14]} {[%emt 00:00:04]} Kf7 {[%clk 00:00:42]} {[%emt 00:00:08]} 36.
hxg6+ {[%clk 00:00:11]} {[%emt 00:00:07]} hxg6 {[%clk 00:00:45]} {[%emt
00:00:01]} 37. Rb1 {[%clk 00:00:16]} Kg7 {[%clk 00:00:37]} {[%emt 00:00:14]} 38.
Rg1 {[%clk 00:00:13]} {[%emt 00:00:07]} Rxb5 {[%clk 00:00:31]} {[%emt
00:00:11]} 39. Rgxg6+ {[%clk 00:00:14]} {[%emt 00:00:04]} Kf7 {[%clk 00:00:18]}
{[%emt 00:00:18]} 40. Rh6 {[%clk 00:00:07]} {[%emt 00:00:13]} Kg7 {[%clk
00:00:21]} {[%emt 00:00:02]} 41. Rhg6+ {[%clk 00:00:07]} {[%emt 00:00:04]} Kf7
{[%clk 00:00:24]} 42. Rgf6+ {[%clk 00:00:11]} {[%emt 00:00:01]} Kg7 {[%clk
00:00:22]} {[%emt 00:00:08]} 43. Rg6+ {[%clk 00:00:10]} {[%emt 00:00:07]} Kf7
{[%clk 00:00:26]} 44. Rgf6+ {[%clk 00:00:08]} {[%emt 00:00:07]} Kg7 {[%clk
00:00:29]} 45. Rg6+ {[%clk 00:00:13]} Kf7 {[%clk 00:00:33]} {[%emt 00:00:02]}
46. Rgf6+ {[%clk 00:00:17]} Kg7 47. Ke4 {[%emt 00:00:03]} 1/2-1/2



[ePGN "0.1;DGT LiveChess/2.2.6"]

[Event "MČR juniorů a juniorek v rapid šachu 2024"]
[Site "Hotel Fit Fun, Harrachov, Czech Republic"]
[Date "2024.09.21"]
[Round "3.7"]
[White "Jun Robert"]
[Black "Hozda Max"]
[Result "1-0"]
[TimeControl "20+5"]
[WhiteFideId "23709510"]
[BlackFideId "23725958"]
[WhiteElo "1681"]
[BlackElo "1939"]

1. e4 {[%clk 00:20:08]} {[%emt 00:00:01]} d5 {[%clk 00:19:56]} {[%emt
00:00:08]} 2. exd5 {[%clk 00:20:09]} {[%emt 00:00:11]} Qxd5 {[%clk 00:19:59]}
{[%emt 00:00:02]} 3. Nc3 {[%clk 00:20:13]} Qe5+ {[%clk 00:20:03]} {[%emt
00:00:01]} 4. Be2 {[%clk 00:20:14]} {[%emt 00:00:03]} Bg4 {[%clk 00:20:06]}
{[%emt 00:00:02]} 5. d4 {[%clk 00:20:02]} {[%emt 00:00:17]} Bxe2 {[%clk
00:20:08]} {[%emt 00:00:03]} 6. Ngxe2 {[%clk 00:20:05]} {[%emt 00:00:02]} Qa5
{[%clk 00:20:11]} {[%emt 00:00:02]} 7. O-O {[%clk 00:20:04]} {[%emt 00:00:07]}
Nf6 {[%clk 00:20:13]} {[%emt 00:00:03]} 8. Qd3 {[%clk 00:19:52]} {[%emt
00:00:18]} Nc6 {[%clk 00:18:35]} {[%emt 00:01:43]} 9. a3 {[%clk 00:19:48]}
{[%emt 00:00:08]} e6 {[%clk 00:17:47]} {[%emt 00:00:53]} 10. Bf4 {[%clk
00:18:57]} {[%emt 00:00:57]} Bd6 {[%clk 00:16:36]} {[%emt 00:01:15]} 11. Qg3
{[%clk 00:18:01]} {[%emt 00:01:02]} Nh5 {[%clk 00:15:10]} {[%emt 00:01:31]} 12.
Qe3 {[%clk 00:17:50]} {[%emt 00:00:16]} Nxf4 {[%clk 00:14:41]} {[%emt
00:00:34]} 13. Nxf4 {[%clk 00:17:52]} {[%emt 00:00:03]} O-O {[%clk 00:14:14]}
{[%emt 00:00:31]} 14. Nfe2 {[%clk 00:17:05]} {[%emt 00:00:52]} Qh5 {[%clk
00:11:53]} {[%emt 00:02:26]} 15. Ng3 {[%clk 00:16:21]} {[%emt 00:00:50]} Bxg3
{[%clk 00:11:03]} {[%emt 00:00:54]} 16. fxg3 {[%clk 00:16:24]} {[%emt
00:00:02]} Rad8 {[%emt 00:01:23]} 17. Rad1 {[%emt 00:02:04]} Rd7 {[%emt
00:01:22]} 18. Ne2 {[%emt 00:00:41]} Rfd8 {[%emt 00:00:52]} 19. c3 {[%emt
00:02:18]} Qb5 {[%emt 00:00:17]} 20. Rd2 {[%emt 00:02:00]} Na5 {[%emt
00:04:25]} 21. Nf4 {[%emt 00:00:29]} Nc4 {[%clk 00:04:03]} {[%emt 00:00:01]} 22.
Qe2 {[%emt 00:00:58]} Qc6 {[%emt 00:01:38]} 23. Rd3 {[%emt 00:00:35]} e5 {[%emt
00:00:36]} 24. dxe5 {[%clk 00:06:24]} {[%emt 00:00:05]} Qc5+ {[%clk 00:01:58]}
{[%emt 00:00:46]} 25. Kh1 {[%clk 00:06:14]} {[%emt 00:00:15]} Nxe5 {[%clk
00:01:36]} {[%emt 00:00:27]} 26. Rxd7 {[%clk 00:05:57]} {[%emt 00:00:22]} Rxd7
{[%clk 00:01:35]} {[%emt 00:00:07]} 27. Re1 {[%clk 00:05:18]} {[%emt 00:00:43]}
f6 {[%clk 00:01:35]} {[%emt 00:00:05]} 28. h3 {[%clk 00:04:32]} {[%emt
00:00:51]} Qc4 {[%clk 00:01:25]} {[%emt 00:00:16]} 29. Qe3 {[%clk 00:03:45]}
{[%emt 00:00:50]} b6 {[%clk 00:01:17]} {[%emt 00:00:15]} 30. Qf2 {[%clk
00:03:13]} {[%emt 00:00:37]} a5 {[%clk 00:00:44]} {[%emt 00:00:38]} 31. Nh5
{[%clk 00:02:59]} {[%emt 00:00:18]} Qc6 {[%clk 00:00:12]} {[%emt 00:00:37]} 32.
Qc2 {[%clk 00:02:31]} {[%emt 00:00:34]} g6 {[%clk 00:00:08]} {[%emt 00:00:09]}
33. Qb3+ {[%clk 00:02:15]} {[%emt 00:00:20]} Qc4 {[%clk 00:00:09]} {[%emt
00:00:05]} 34. Qxc4+ Nxc4 {[%clk 00:00:13]} 35. Nxf6+ {[%clk 00:02:20]} {[%emt
00:00:01]} 1-0



[ePGN "0.1;DGT LiveChess/2.2.6"]

[Event "MČR juniorů a juniorek v rapid šachu 2024"]
[Site "Hotel Fit Fun, Harrachov, Czech Republic"]
[Date "2024.09.21"]
[Round "3.8"]
[White "Rybackova Lucie"]
[Black "Ret Adam Josef"]
[Result "1/2-1/2"]
[TimeControl "20+5"]
[WhiteFideId "23739207"]
[BlackFideId "384240"]
[WhiteElo "1933"]
[BlackElo "2038"]

1. d4 {[%clk 00:20:08]} {[%emt 00:12:39]} d5 {[%clk 00:20:09]} {[%emt
00:00:02]} 2. Nf3 {[%clk 00:20:11]} {[%emt 00:00:02]} e6 {[%clk 00:20:13]}
{[%emt 00:00:01]} 3. g3 {[%clk 00:20:14]} {[%emt 00:00:02]} Nf6 {[%clk
00:20:05]} {[%emt 00:00:13]} 4. Bg2 {[%clk 00:20:17]} {[%emt 00:00:01]} Be7
{[%clk 00:20:09]} 5. O-O {[%clk 00:20:20]} {[%emt 00:00:03]} O-O {[%clk
00:20:12]} {[%emt 00:00:01]} 6. c4 {[%clk 00:20:23]} {[%emt 00:00:03]} dxc4
{[%clk 00:20:15]} {[%emt 00:00:02]} 7. Qc2 {[%clk 00:20:24]} {[%emt 00:00:03]}
a6 {[%clk 00:20:16]} {[%emt 00:00:04]} 8. a4 {[%clk 00:20:27]} {[%emt
00:00:02]} Bd7 {[%clk 00:20:05]} {[%emt 00:00:16]} 9. Qxc4 {[%clk 00:20:26]}
{[%emt 00:00:06]} Bc6 {[%clk 00:19:21]} {[%emt 00:00:49]} 10. Bg5 {[%clk
00:20:28]} {[%emt 00:00:03]} Nbd7 {[%clk 00:17:41]} {[%emt 00:01:46]} 11. Nbd2
{[%clk 00:18:55]} {[%emt 00:01:37]} h6 {[%clk 00:17:22]} {[%emt 00:00:25]} 12.
Bxf6 {[%clk 00:18:53]} {[%emt 00:00:06]} Nxf6 {[%clk 00:17:09]} {[%emt
00:00:19]} 13. Rfc1 {[%clk 00:17:16]} {[%emt 00:01:42]} Rc8 {[%clk 00:17:02]}
{[%emt 00:00:11]} 14. b4 {[%clk 00:15:33]} {[%emt 00:01:48]} Bd5 {[%clk
00:16:16]} {[%emt 00:00:52]} 15. Qc3 {[%clk 00:15:17]} {[%emt 00:00:21]} Bc6
{[%clk 00:15:00]} {[%emt 00:01:21]} 16. Qb2 {[%clk 00:14:20]} {[%emt 00:01:02]}
Qe8 {[%clk 00:13:59]} {[%emt 00:01:07]} 17. Ne5 {[%clk 00:12:59]} {[%emt
00:01:25]} Bxg2 {[%clk 00:13:52]} {[%emt 00:00:12]} 18. Kxg2 {[%clk 00:13:00]}
{[%emt 00:00:04]} Qd8 {[%clk 00:13:29]} {[%emt 00:00:29]} 19. Ndf3 {[%clk
00:11:12]} {[%emt 00:01:53]} Qd5 {[%clk 00:12:07]} {[%emt 00:01:26]} 20. Rab1
{[%clk 00:10:12]} {[%emt 00:01:05]} Rfd8 {[%clk 00:11:44]} {[%emt 00:00:28]} 21.
Qb3 {[%clk 00:09:29]} {[%emt 00:00:48]} g5 {[%clk 00:10:38]} {[%emt 00:01:11]}
22. h3 {[%clk 00:08:16]} {[%emt 00:01:18]} Qe4 {[%clk 00:09:26]} {[%emt
00:01:18]} 23. Qc2 {[%clk 00:07:50]} {[%emt 00:00:30]} Qd5 {[%clk 00:09:07]}
{[%emt 00:00:24]} 24. b5 {[%clk 00:04:59]} {[%emt 00:02:56]} a5 {[%clk
00:08:27]} {[%emt 00:00:46]} 25. Ng4 {[%clk 00:04:27]} {[%emt 00:00:37]} Kg7
{[%clk 00:08:01]} {[%emt 00:00:31]} 26. Nge5 {[%clk 00:03:38]} {[%emt
00:00:54]} Ba3 {[%clk 00:07:51]} {[%emt 00:00:15]} 27. Rd1 {[%clk 00:03:31]}
{[%emt 00:00:11]} Bb4 {[%clk 00:07:51]} {[%emt 00:00:05]} 28. Kh2 {[%clk
00:02:29]} {[%emt 00:01:07]} Ne4 {[%clk 00:07:47]} {[%emt 00:00:10]} 29. Rf1
{[%clk 00:02:06]} {[%emt 00:00:28]} Nc3 {[%clk 00:07:24]} {[%emt 00:00:29]} 30.
Rb3 {[%clk 00:01:50]} {[%emt 00:00:21]} Ne4 {[%clk 00:05:33]} {[%emt 00:01:56]}
31. Nd3 {[%clk 00:00:51]} {[%emt 00:01:04]} Bd6 {[%clk 00:05:36]} {[%emt
00:00:02]} 32. e3 {[%clk 00:00:27]} {[%emt 00:00:29]} f5 {[%clk 00:05:17]}
{[%emt 00:00:24]} 33. Nfe5 {[%clk 00:00:27]} {[%emt 00:00:05]} Nf6 {[%clk
00:04:32]} {[%emt 00:00:49]} 1/2-1/2



[ePGN "0.1;DGT LiveChess/2.2.6"]